[Event "Titled Tuesday Blitz December 13 Late 2022"]
[White "De VJunior, Liduino Furtado"]
[Black "Mikhalsky, Vladimir"]
[WhiteFideId "2109913"]
[BlackFideId "14144352"]
[WhiteElo "2050"]
[BlackElo "2272"]
[Result "0-1"]
[Round "05"]
[TimeControl "180+1"]
[Date "2022.12.14"]
[WhiteClock "0:00:25"]
[BlackClock "0:00:21"]

1. e4 {[%clk 0:02:59]}  c5 {[%clk 0:02:58]} 2. Nf3 {[%clk 0:02:59]}  Nc6 {[%clk 0:02:57]} 3. d4 {[%clk 0:03:00]}  cxd4 {[%clk 0:02:57]} 4. Nxd4 {[%clk 0:03:01]}  Nf6 {[%clk 0:02:56]} 5. Nxc6 {[%clk 0:03:01]}  bxc6 {[%clk 0:02:55]} 6. Bd3 {[%clk 0:03:02]}  d5 {[%clk 0:02:53]} 7. Nd2 {[%clk 0:03:02]}  e5 {[%clk 0:02:51]} 8. O-O {[%clk 0:03:01]}  Bd6 {[%clk 0:02:50]} 9. c4 {[%clk 0:03:01]}  d4 {[%clk 0:02:47]} 10. Qc2 {[%clk 0:03:01]}  O-O {[%clk 0:02:46]} 11. c5 {[%clk 0:03:01]}  Be7 {[%clk 0:02:44]} 12. Nf3 {[%clk 0:02:56]}  Nd7 {[%clk 0:02:40]} 13. b4 {[%clk 0:02:54]}  a5 {[%clk 0:02:40]} 14. b5 {[%clk 0:02:48]}  f6 {[%clk 0:02:19]} 15. Ba3 {[%clk 0:02:44]}  cxb5 {[%clk 0:02:16]} 16. Bxb5 {[%clk 0:02:43]}  Ba6 {[%clk 0:02:15]} 17. Qc4+ {[%clk 0:02:41]}  Kh8 {[%clk 0:02:10]} 18. Bxa6 {[%clk 0:02:41]}  Nxc5 {[%clk 0:02:07]} 19. Bxc5 {[%clk 0:02:39]}  Bxc5 {[%clk 0:02:07]} 20. Qxc5 {[%clk 0:02:39]}  Rxa6 {[%clk 0:02:07]} 21. Rfd1 {[%clk 0:02:35]}  Qd6 {[%clk 0:02:06]} 22. Rac1 {[%clk 0:02:33]}  Rb8 {[%clk 0:02:00]} 23. Nh4 {[%clk 0:02:25]}  g6 {[%clk 0:01:58]} 24. Qc4 {[%clk 0:02:23]}  Kg7 {[%clk 0:01:56]} 25. Qc7+ {[%clk 0:02:20]}  Qxc7 {[%clk 0:01:55]} 26. Rxc7+ {[%clk 0:02:21]}  Kh6 {[%clk 0:01:55]} 27. g3 {[%clk 0:02:18]}  Rb2 {[%clk 0:01:54]} 28. f4 {[%clk 0:01:59]}  exf4 {[%clk 0:01:39]} 29. gxf4 {[%clk 0:01:59]}  Rxa2 {[%clk 0:01:38]} 30. Rb1 {[%clk 0:01:59]}  Kh5 {[%clk 0:01:14]} 31. Rxh7+ {[%clk 0:01:55]}  Kg4 {[%clk 0:01:14]} 32. Nxg6 {[%clk 0:01:50]}  Rc6 {[%clk 0:01:12]} 33. Kh1 {[%clk 0:01:49]}  Rcc2 {[%clk 0:01:08]} 34. Rg1+ {[%clk 0:01:49]}  Kf3 {[%clk 0:01:08]} 35. e5 {[%clk 0:01:48]}  fxe5 {[%clk 0:01:05]} 36. fxe5 {[%clk 0:01:46]}  d3 {[%clk 0:01:05]} 37. Rh3+ {[%clk 0:01:45]}  Ke4 {[%clk 0:01:03]} 38. e6 {[%clk 0:01:36]}  d2 {[%clk 0:01:03]} 39. e7 {[%clk 0:01:36]}  Rc8 {[%clk 0:01:03]} 40. Rh5 {[%clk 0:01:28]}  Re8 {[%clk 0:00:57]} 41. Re5+ {[%clk 0:01:27]}  Kd3 {[%clk 0:00:54]} 42. Nf4+ {[%clk 0:01:24]}  Kd4 {[%clk 0:00:53]} 43. Re6 {[%clk 0:01:20]}  Rc2 {[%clk 0:00:51]} 44. Rd1 {[%clk 0:01:05]}  Rc1 {[%clk 0:00:49]} 45. Ne2+ {[%clk 0:01:05]}  Kd5 {[%clk 0:00:48]} 46. Nxc1 {[%clk 0:01:02]}  Kxe6 {[%clk 0:00:40]} 47. Rxd2 {[%clk 0:01:02]}  Rxe7 {[%clk 0:00:32]} 48. Re2+ {[%clk 0:01:02]}  Kf7 {[%clk 0:00:32]} 49. Rxe7+ {[%clk 0:01:02]}  Kxe7 {[%clk 0:00:32]} 50. Kg2 {[%clk 0:01:03]}  Kf6 {[%clk 0:00:32]} 51. Kf3 {[%clk 0:01:00]}  Kg5 {[%clk 0:00:33]} 52. Nd3 {[%clk 0:00:57]}  a4 {[%clk 0:00:31]} 53. Ke3 {[%clk 0:00:48]}  Kh4 {[%clk 0:00:29]} 54. Nf2 {[%clk 0:00:48]}  a3 {[%clk 0:00:27]} 55. Kd2 {[%clk 0:00:48]}  a2 {[%clk 0:00:26]} 56. Ke3 {[%clk 0:00:42]}  a1=Q {[%clk 0:00:26]} 57. Kf3 {[%clk 0:00:42]}  Qf6+ {[%clk 0:00:24]} 58. Kg2 {[%clk 0:00:41]}  Qg5+ {[%clk 0:00:24]} 59. Kh1 {[%clk 0:00:39]}  Qd5+ {[%clk 0:00:23]} 60. Kg1 {[%clk 0:00:39]}  Kg5 {[%clk 0:00:22]} 61. Kf1 {[%clk 0:00:38]}  Kf4 {[%clk 0:00:22]} 62. h3 {[%clk 0:00:34]}  Kf3 {[%clk 0:00:22]} 63. Kg1 {[%clk 0:00:29]}  Qd4 {[%clk 0:00:22]} 64. Kh1 {[%clk 0:00:26]}  Qxf2 {[%clk 0:00:21]} 65. h4 {[%clk 0:00:25]}  Qg3 {[%clk 0:00:21]} 66. h5 {[%clk 0:00:25]}  Kf2 {[%clk 0:00:20]} 67. h6 {[%clk 0:00:25]}  Kf1 {[%clk 0:00:21]} 68. h7 {[%clk 0:00:25]}  Qh3# {[%clk 0:00:21]} 0-1


[Site "https://www.chess.com"]

[Event "Titled Tuesday Blitz December 13 Late 2022"]
[White "Fernandez Garcia, Gumersindo"]
[Black "Souleidis, Georgios"]
[WhiteFideId "24516740"]
[BlackFideId "4206827"]
[WhiteElo "2140"]
[BlackElo "2401"]
[Result "0-1"]
[Round "05"]
[TimeControl "180+1"]
[Date "2022.12.14"]
[WhiteClock "0:00:30"]
[BlackClock "0:00:09"]

1. d4 {[%clk 0:03:00]}  Nf6 {[%clk 0:02:59]} 2. c4 {[%clk 0:03:00]}  g6 {[%clk 0:02:59]} 3. Nc3 {[%clk 0:03:00]}  Bg7 {[%clk 0:02:59]} 4. e4 {[%clk 0:03:00]}  d6 {[%clk 0:03:00]} 5. Bg5 {[%clk 0:03:00]}  O-O {[%clk 0:02:59]} 6. Qd2 {[%clk 0:03:01]}  c5 {[%clk 0:02:57]} 7. d5 {[%clk 0:03:01]}  e6 {[%clk 0:02:57]} 8. Nf3 {[%clk 0:03:01]}  exd5 {[%clk 0:02:58]} 9. exd5 {[%clk 0:03:02]}  Re8+ {[%clk 0:02:57]} 10. Be2 {[%clk 0:03:02]}  Nbd7 {[%clk 0:02:57]} 11. O-O {[%clk 0:03:01]}  a6 {[%clk 0:02:55]} 12. a4 {[%clk 0:03:01]}  Ne5 {[%clk 0:02:50]} 13. Nxe5 {[%clk 0:03:00]}  Rxe5 {[%clk 0:02:51]} 14. f4 {[%clk 0:02:59]}  Re8 {[%clk 0:02:51]} 15. Bd3 {[%clk 0:02:58]}  Qc7 {[%clk 0:02:34]} 16. f5 {[%clk 0:02:52]}  Ng4 {[%clk 0:01:51]} 17. f6 {[%clk 0:02:09]}  Bh8 {[%clk 0:01:51]} 18. Rae1 {[%clk 0:02:05]}  Bd7 {[%clk 0:01:46]} 19. h3 {[%clk 0:02:00]}  Ne5 {[%clk 0:01:45]} 20. Ne4 {[%clk 0:01:58]}  Nxd3 {[%clk 0:01:30]} 21. Qxd3 {[%clk 0:01:57]}  Bxa4 {[%clk 0:01:14]} 22. Qg3 {[%clk 0:01:47]}  Rad8 {[%clk 0:00:42]} 23. Bf4 {[%clk 0:01:42]}  Rxe4 {[%clk 0:00:33]} 24. Rxe4 {[%clk 0:01:41]}  Bxf6 {[%clk 0:00:34]} 25. b3 {[%clk 0:01:36]}  Be8 {[%clk 0:00:25]} 26. Bxd6 {[%clk 0:01:28]}  Qxd6 {[%clk 0:00:12]} 27. Rxe8+ {[%clk 0:01:27]}  Kg7 {[%clk 0:00:13]} 28. Qxd6 {[%clk 0:01:27]}  Rxd6 {[%clk 0:00:14]} 29. Rc8 {[%clk 0:01:22]}  b5 {[%clk 0:00:13]} 30. cxb5 {[%clk 0:01:19]}  axb5 {[%clk 0:00:11]} 31. Kh1 {[%clk 0:01:09]}  Bd4 {[%clk 0:00:09]} 32. Rc7 {[%clk 0:01:09]}  Rxd5 {[%clk 0:00:03]} 33. Rfxf7+ {[%clk 0:01:08]}  Kh6 {[%clk 0:00:03]} 34. Rxh7+ {[%clk 0:00:57]}  Kg5 {[%clk 0:00:04]} 35. g3 {[%clk 0:00:52]}  Be5 {[%clk 0:00:03]} 36. Rcf7 {[%clk 0:00:46]}  Bxg3 {[%clk 0:00:03]} 37. Kg2 {[%clk 0:00:47]}  Be5 {[%clk 0:00:02]} 38. Rf2 {[%clk 0:00:44]}  Bd4 {[%clk 0:00:02]} 39. Re2 {[%clk 0:00:43]}  c4 {[%clk 0:00:02]} 40. bxc4 {[%clk 0:00:42]}  bxc4 {[%clk 0:00:03]} 41. h4+ {[%clk 0:00:41]}  Kf5 {[%clk 0:00:02]} 42. Kf3 {[%clk 0:00:38]}  Bf6 {[%clk 0:00:01]} 43. Rc7 {[%clk 0:00:35]}  c3 {[%clk 0:00:02]} 44. Re4 {[%clk 0:00:33]}  Rd3+ {[%clk 0:00:02]} 45. Kg2 {[%clk 0:00:32]}  Kxe4 {[%clk 0:00:01]} 46. Rc6 {[%clk 0:00:30]}  Be5 {[%clk 0:00:02]} 47. Rxg6 {[%clk 0:00:27]}  Rd2+ {[%clk 0:00:03]} 48. Kh3 {[%clk 0:00:26]}  c2 {[%clk 0:00:04]} 49. Rc6 {[%clk 0:00:26]}  Kd3 {[%clk 0:00:04]} 50. Re6 {[%clk 0:00:22]}  Bc3 {[%clk 0:00:05]} 51. Rd6+ {[%clk 0:00:22]}  Kc4 {[%clk 0:00:06]} 52. Rc6+ {[%clk 0:00:20]}  Kb3 {[%clk 0:00:06]} 53. Rb6+ {[%clk 0:00:20]}  Ka2 {[%clk 0:00:07]} 54. Ra6+ {[%clk 0:00:20]}  Kb3 {[%clk 0:00:07]} 55. Rb6+ {[%clk 0:00:20]}  Bb4 {[%clk 0:00:08]} 56. Rc6 {[%clk 0:00:20]}  Rd1 {[%clk 0:00:09]} 57. h5 {[%clk 0:00:19]}  c1=Q {[%clk 0:00:09]} 58. Rxc1 {[%clk 0:00:19]}  Rxc1 {[%clk 0:00:10]} 59. Kg4 {[%clk 0:00:20]}  Bc3 {[%clk 0:00:10]} 60. Kg5 {[%clk 0:00:21]}  Rh1 {[%clk 0:00:10]} 61. h6 {[%clk 0:00:22]}  Bd2+ {[%clk 0:00:10]} 62. Kg6 {[%clk 0:00:23]}  Bxh6 {[%clk 0:00:11]} 63. Kf7 {[%clk 0:00:22]}  Bc1 {[%clk 0:00:12]} 64. Kg6 {[%clk 0:00:23]}  Rf1 {[%clk 0:00:12]} 65. Kh5 {[%clk 0:00:23]}  Kc3 {[%clk 0:00:12]} 66. Kg4 {[%clk 0:00:24]}  Kd3 {[%clk 0:00:13]} 67. Kg3 {[%clk 0:00:24]}  Ke3 {[%clk 0:00:13]} 68. Kg2 {[%clk 0:00:25]}  Rf8 {[%clk 0:00:13]} 69. Kg3 {[%clk 0:00:25]}  Rg8+ {[%clk 0:00:14]} 70. Kh4 {[%clk 0:00:26]}  Kf4 {[%clk 0:00:13]} 71. Kh5 {[%clk 0:00:27]}  Rg1 {[%clk 0:00:13]} 72. Kh6 {[%clk 0:00:28]}  Kf5+ {[%clk 0:00:10]} 73. Kh7 {[%clk 0:00:29]}  Kf6 {[%clk 0:00:10]} 74. Kh8 {[%clk 0:00:29]}  Ba3 {[%clk 0:00:09]} 75. Kh7 {[%clk 0:00:30]}  Rg2 {[%clk 0:00:09]} 0-1


[Site "https://www.chess.com"]

[Event "Titled Tuesday Blitz December 13 Late 2022"]
[White "Ferriz Barrios, Andres"]
[Black "Dias, Joao Batista"]
[WhiteFideId "5104467"]
[BlackFideId "2108240"]
[WhiteElo "2265"]
[BlackElo "1898"]
[Result "1-0"]
[Round "05"]
[TimeControl "180+1"]
[Date "2022.12.14"]
[WhiteClock "0:02:08"]
[BlackClock "0:00:42"]

1. d4 {[%clk 0:03:00]}  d5 {[%clk 0:02:59]} 2. Nf3 {[%clk 0:02:58]}  Nf6 {[%clk 0:02:58]} 3. Nbd2 {[%clk 0:02:59]}  h6 {[%clk 0:02:56]} 4. e3 {[%clk 0:03:00]}  Bf5 {[%clk 0:02:55]} 5. Bd3 {[%clk 0:03:00]}  Qd7 {[%clk 0:02:54]} 6. O-O {[%clk 0:03:00]}  e6 {[%clk 0:02:52]} 7. Ne5 {[%clk 0:02:59]}  Qd8 {[%clk 0:02:51]} 8. f4 {[%clk 0:02:57]}  Be7 {[%clk 0:02:49]} 9. g4 {[%clk 0:02:51]}  Bxd3 {[%clk 0:02:47]} 10. cxd3 {[%clk 0:02:52]}  Nbd7 {[%clk 0:02:46]} 11. Ndf3 {[%clk 0:02:46]}  O-O {[%clk 0:02:46]} 12. g5 {[%clk 0:02:45]}  hxg5 {[%clk 0:02:44]} 13. fxg5 {[%clk 0:02:45]}  Ne8 {[%clk 0:02:38]} 14. Nxd7 {[%clk 0:02:43]}  Qxd7 {[%clk 0:02:38]} 15. Ne5 {[%clk 0:02:44]}  Qb5 {[%clk 0:02:32]} 16. Qh5 {[%clk 0:02:40]}  g6 {[%clk 0:01:32]} 17. Qh6 {[%clk 0:02:38]}  c5 {[%clk 0:01:23]} 18. h4 {[%clk 0:02:32]}  cxd4 {[%clk 0:01:22]} 19. exd4 {[%clk 0:02:33]}  Qb4 {[%clk 0:01:13]} 20. Be3 {[%clk 0:02:18]}  Qxb2 {[%clk 0:01:11]} 21. h5 {[%clk 0:02:17]}  Qe2 {[%clk 0:01:02]} 22. Rae1 {[%clk 0:02:16]}  Qxh5 {[%clk 0:00:53]} 23. Qxh5 {[%clk 0:02:12]}  gxh5 {[%clk 0:00:53]} 24. g6 {[%clk 0:02:13]}  fxg6 {[%clk 0:00:49]} 25. Rxf8+ {[%clk 0:02:12]}  Bxf8 {[%clk 0:00:48]} 26. Nxg6 {[%clk 0:02:13]}  Bg7 {[%clk 0:00:46]} 27. Rf1 {[%clk 0:02:08]}  Rc8 {[%clk 0:00:44]} 28. Ne7+ {[%clk 0:02:07]}  Kh7 {[%clk 0:00:42]} 29. Nxc8 {[%clk 0:02:08]} 1-0


[Site "https://www.chess.com"]

[Event "Titled Tuesday Blitz December 13 Late 2022"]
[White "Figorito, Nick"]
[Black "Romero Ruscalleda, Josep"]
[WhiteFideId "30923689"]
[BlackFideId "2231859"]
[WhiteElo "2424"]
[BlackElo "2183"]
[Result "1-0"]
[Round "05"]
[TimeControl "180+1"]
[Date "2022.12.14"]
[WhiteClock "0:00:59"]
[BlackClock "0:00:07"]

1. Nf3 {[%clk 0:03:00]}  g6 {[%clk 0:03:00]} 2. g3 {[%clk 0:03:01]}  Bg7 {[%clk 0:03:00]} 3. Bg2 {[%clk 0:03:02]}  e5 {[%clk 0:03:00]} 4. O-O {[%clk 0:03:02]}  d6 {[%clk 0:03:00]} 5. c4 {[%clk 0:03:02]}  f5 {[%clk 0:03:00]} 6. Nc3 {[%clk 0:03:03]}  Nf6 {[%clk 0:03:00]} 7. d3 {[%clk 0:03:03]}  O-O {[%clk 0:03:00]} 8. Rb1 {[%clk 0:03:04]}  a5 {[%clk 0:02:59]} 9. a3 {[%clk 0:03:04]}  Nc6 {[%clk 0:02:59]} 10. b4 {[%clk 0:03:04]}  h6 {[%clk 0:02:53]} 11. b5 {[%clk 0:03:04]}  Ne7 {[%clk 0:02:52]} 12. Ne1 {[%clk 0:03:04]}  Rb8 {[%clk 0:02:51]} 13. Nc2 {[%clk 0:03:03]}  Be6 {[%clk 0:02:45]} 14. a4 {[%clk 0:02:50]}  d5 {[%clk 0:02:39]} 15. cxd5 {[%clk 0:02:47]}  Nfxd5 {[%clk 0:02:39]} 16. Nxd5 {[%clk 0:02:47]}  Nxd5 {[%clk 0:02:39]} 17. Bb2 {[%clk 0:02:38]}  g5 {[%clk 0:02:19]} 18. Na3 {[%clk 0:02:36]}  Nb4 {[%clk 0:01:46]} 19. Nc4 {[%clk 0:02:27]}  e4 {[%clk 0:01:32]} 20. Bxg7 {[%clk 0:02:23]}  Kxg7 {[%clk 0:01:32]} 21. Nxa5 {[%clk 0:02:20]}  c5 {[%clk 0:01:08]} 22. Nb3 {[%clk 0:01:42]}  exd3 {[%clk 0:00:49]} 23. Nxc5 {[%clk 0:01:35]}  Qe7 {[%clk 0:00:36]} 24. Nxe6+ {[%clk 0:01:32]}  Qxe6 {[%clk 0:00:31]} 25. Rxb4 {[%clk 0:01:27]}  dxe2 {[%clk 0:00:30]} 26. Qa1+ {[%clk 0:01:20]}  Rf6 {[%clk 0:00:29]} 27. Re1 {[%clk 0:01:18]}  b6 {[%clk 0:00:18]} 28. Rb2 {[%clk 0:01:10]}  Re8 {[%clk 0:00:15]} 29. Qa2 {[%clk 0:01:10]}  Qxa2 {[%clk 0:00:12]} 30. Rxa2 {[%clk 0:01:11]}  Rfe6 {[%clk 0:00:12]} 31. Bf3 {[%clk 0:01:00]}  f4 {[%clk 0:00:07]} 32. Raxe2 {[%clk 0:00:58]}  Kf6 {[%clk 0:00:06]} 33. Rxe6+ {[%clk 0:00:58]}  Rxe6 {[%clk 0:00:06]} 34. Rxe6+ {[%clk 0:00:59]}  Kxe6 {[%clk 0:00:07]} 1-0


[Site "https://www.chess.com"]

[Event "Titled Tuesday Blitz December 13 Late 2022"]
[White "Gasparyan, David"]
[Black "Martinez Reyes, Pedro Ramon"]
[WhiteFideId "13311980"]
[BlackFideId "3901807"]
[WhiteElo "2413"]
[BlackElo "2354"]
[Result "1-0"]
[Round "05"]
[TimeControl "180+1"]
[Date "2022.12.14"]
[WhiteClock "0:00:45"]
[BlackClock "0:00:15"]

1. e4 {[%clk 0:02:57]}  e6 {[%clk 0:02:56]} 2. Ne2 {[%clk 0:02:56]}  h5 {[%clk 0:02:50]} 3. c4 {[%clk 0:02:54]}  c5 {[%clk 0:02:49]} 4. Nbc3 {[%clk 0:02:54]}  h4 {[%clk 0:02:49]} 5. d4 {[%clk 0:02:51]}  cxd4 {[%clk 0:02:49]} 6. Nxd4 {[%clk 0:02:52]}  Nc6 {[%clk 0:02:46]} 7. Be3 {[%clk 0:02:52]}  Qa5 {[%clk 0:02:13]} 8. a3 {[%clk 0:02:47]}  Nf6 {[%clk 0:02:08]} 9. Qc2 {[%clk 0:02:38]}  h3 {[%clk 0:02:03]} 10. gxh3 {[%clk 0:02:24]}  Bc5 {[%clk 0:01:53]} 11. Nb3 {[%clk 0:02:22]}  Qc7 {[%clk 0:01:39]} 12. Nxc5 {[%clk 0:02:19]}  d6 {[%clk 0:01:38]} 13. Nb5 {[%clk 0:02:05]}  Qd8 {[%clk 0:01:37]} 14. O-O-O {[%clk 0:02:01]}  a6 {[%clk 0:01:32]} 15. Nxd6+ {[%clk 0:02:01]}  Kf8 {[%clk 0:01:30]} 16. Nxf7 {[%clk 0:01:54]}  Qe8 {[%clk 0:01:30]} 17. Nxh8 {[%clk 0:01:53]}  Kg8 {[%clk 0:01:30]} 18. e5 {[%clk 0:01:34]}  Nxe5 {[%clk 0:01:28]} 19. Bd4 {[%clk 0:01:31]}  Ned7 {[%clk 0:01:18]} 20. Ng6 {[%clk 0:01:26]}  e5 {[%clk 0:01:14]} 21. Be3 {[%clk 0:01:18]}  e4 {[%clk 0:01:08]} 22. Nf4 {[%clk 0:01:07]}  Nxc5 {[%clk 0:00:40]} 23. Bxc5 {[%clk 0:01:07]}  Bf5 {[%clk 0:00:40]} 24. Rg1 {[%clk 0:01:00]}  Kf7 {[%clk 0:00:39]} 25. Qc3 {[%clk 0:00:52]}  Rc8 {[%clk 0:00:32]} 26. Bd4 {[%clk 0:00:51]}  Rc6 {[%clk 0:00:16]} 27. Bxf6 {[%clk 0:00:49]}  Rxf6 {[%clk 0:00:17]} 28. Nd5 {[%clk 0:00:48]}  Rg6 {[%clk 0:00:18]} 29. Rxg6 {[%clk 0:00:47]}  Bxg6 {[%clk 0:00:18]} 30. Be2 {[%clk 0:00:47]}  Qd8 {[%clk 0:00:17]} 31. Ne3 {[%clk 0:00:44]}  Qg5 {[%clk 0:00:16]} 32. Qd4 {[%clk 0:00:44]}  Qe7 {[%clk 0:00:16]} 33. Qd7 {[%clk 0:00:44]}  Qxd7 {[%clk 0:00:14]} 34. Rxd7+ {[%clk 0:00:45]}  Ke6 {[%clk 0:00:15]} 35. Rxb7 {[%clk 0:00:45]} 1-0


[Site "https://www.chess.com"]

[Event "Titled Tuesday Blitz December 13 Late 2022"]
[White "Grigoriants, Sergey"]
[Black "Bjelobrk, Igor"]
[WhiteFideId "4130804"]
[BlackFideId "4300726"]
[WhiteElo "2502"]
[BlackElo "2335"]
[Result "1-0"]
[Round "05"]
[TimeControl "180+1"]
[Date "2022.12.13"]
[WhiteClock "0:00:05"]
[BlackClock "0:00:02"]

1. d4 {[%clk 0:02:48]}  d5 {[%clk 0:02:59]} 2. c4 {[%clk 0:02:47]}  c6 {[%clk 0:02:59]} 3. Nf3 {[%clk 0:02:46]}  Nf6 {[%clk 0:02:59]} 4. Nc3 {[%clk 0:02:45]}  dxc4 {[%clk 0:02:58]} 5. a4 {[%clk 0:02:45]}  a5 {[%clk 0:02:55]} 6. e4 {[%clk 0:02:41]}  Bg4 {[%clk 0:02:53]} 7. Be3 {[%clk 0:02:38]}  e6 {[%clk 0:02:53]} 8. Bxc4 {[%clk 0:02:37]}  Bb4 {[%clk 0:02:51]} 9. Qc2 {[%clk 0:02:20]}  Nbd7 {[%clk 0:02:49]} 10. Be2 {[%clk 0:02:00]}  O-O {[%clk 0:02:42]} 11. O-O {[%clk 0:02:00]}  Qe7 {[%clk 0:02:40]} 12. Rad1 {[%clk 0:01:59]}  Bh5 {[%clk 0:02:38]} 13. h3 {[%clk 0:01:56]}  Bg6 {[%clk 0:02:36]} 14. Bd3 {[%clk 0:01:56]}  Bh5 {[%clk 0:02:34]} 15. g4 {[%clk 0:01:47]}  Bg6 {[%clk 0:02:33]} 16. Ne5 {[%clk 0:01:47]}  Nxe5 {[%clk 0:02:27]} 17. dxe5 {[%clk 0:01:47]}  Nd7 {[%clk 0:02:27]} 18. f4 {[%clk 0:01:48]}  h6 {[%clk 0:02:03]} 19. Qf2 {[%clk 0:01:19]}  Bh7 {[%clk 0:01:38]} 20. Kh2 {[%clk 0:01:19]}  Rfd8 {[%clk 0:01:38]} 21. Bb1 {[%clk 0:01:13]}  Nc5 {[%clk 0:01:31]} 22. Qf3 {[%clk 0:01:01]}  Rxd1 {[%clk 0:01:25]} 23. Rxd1 {[%clk 0:00:57]}  Rd8 {[%clk 0:01:26]} 24. Rd4 {[%clk 0:00:32]}  Rxd4 {[%clk 0:01:21]} 25. Bxd4 {[%clk 0:00:33]}  Nb3 {[%clk 0:01:20]} 26. Qf2 {[%clk 0:00:30]}  Qd8 {[%clk 0:01:09]} 27. Be3 {[%clk 0:00:28]}  Qe7 {[%clk 0:00:55]} 28. Ne2 {[%clk 0:00:25]}  Nc5 {[%clk 0:00:52]} 29. Ng3 {[%clk 0:00:21]}  Nxa4 {[%clk 0:00:50]} 30. Ba2 {[%clk 0:00:13]}  Nc5 {[%clk 0:00:46]} 31. f5 {[%clk 0:00:13]}  exf5 {[%clk 0:00:45]} 32. exf5 {[%clk 0:00:07]}  Qxe5 {[%clk 0:00:44]} 33. Bf4 {[%clk 0:00:07]}  Qe7 {[%clk 0:00:37]} 34. Nh5 {[%clk 0:00:07]}  Nd7 {[%clk 0:00:32]} 35. Bc4 {[%clk 0:00:02]}  Bc5 {[%clk 0:00:29]} 36. Qd2 {[%clk 0:00:02]}  Nf6 {[%clk 0:00:21]} 37. Nxf6+ {[%clk 0:00:02]}  Qxf6 {[%clk 0:00:22]} 38. b3 {[%clk 0:00:02]}  Bb4 {[%clk 0:00:22]} 39. Qd7 {[%clk 0:00:01]}  b5 {[%clk 0:00:20]} 40. Qe8+ {[%clk 0:00:01]}  Bf8 {[%clk 0:00:20]} 41. Be2 {[%clk 0:00:01]}  Qe7 {[%clk 0:00:18]} 42. Qxe7 {[%clk 0:00:01]}  Bxe7 {[%clk 0:00:18]} 43. Bf3 {[%clk 0:00:01]}  c5 {[%clk 0:00:18]} 44. Bc6 {[%clk 0:00:02]}  b4 {[%clk 0:00:18]} 45. Bd5 {[%clk 0:00:02]}  Kf8 {[%clk 0:00:18]} 46. Bc7 {[%clk 0:00:02]}  f6 {[%clk 0:00:18]} 47. Bxa5 {[%clk 0:00:02]}  Bg8 {[%clk 0:00:18]} 48. Bxg8 {[%clk 0:00:02]}  Kxg8 {[%clk 0:00:19]} 49. Kg2 {[%clk 0:00:03]}  Kf7 {[%clk 0:00:19]} 50. Kf3 {[%clk 0:00:03]}  Ke8 {[%clk 0:00:20]} 51. Ke4 {[%clk 0:00:04]}  Kd7 {[%clk 0:00:20]} 52. Kd5 {[%clk 0:00:04]}  Bf8 {[%clk 0:00:12]} 53. Bb6 {[%clk 0:00:04]}  c4 {[%clk 0:00:04]} 54. Kxc4 {[%clk 0:00:05]}  Kc6 {[%clk 0:00:04]} 55. Ba5 {[%clk 0:00:05]}  Bd6 {[%clk 0:00:03]} 56. Bxb4 {[%clk 0:00:05]}  Be5 {[%clk 0:00:02]} 57. Bf8 {[%clk 0:00:05]} 1-0


[Site "https://www.chess.com"]

[Event "Titled Tuesday Blitz December 13 Late 2022"]
[White "Grot, Blazej"]
[Black "Sourath Biswas"]
[WhiteFideId "21835845"]
[BlackFideId "35091484"]
[WhiteElo "1823"]
[BlackElo "2164"]
[Result "0-1"]
[Round "05"]
[TimeControl "180+1"]
[Date "2022.12.14"]
[WhiteClock "0:00:02"]
[BlackClock "0:00:18"]

1. e4 {[%clk 0:03:00]}  c5 {[%clk 0:02:57]} 2. Nc3 {[%clk 0:03:00]}  a6 {[%clk 0:02:56]} 3. g3 {[%clk 0:02:59]}  b5 {[%clk 0:02:56]} 4. Bg2 {[%clk 0:02:59]}  Bb7 {[%clk 0:02:57]} 5. d3 {[%clk 0:02:59]}  e6 {[%clk 0:02:57]} 6. Be3 {[%clk 0:03:00]}  Nf6 {[%clk 0:02:56]} 7. h3 {[%clk 0:03:00]}  d5 {[%clk 0:02:54]} 8. exd5 {[%clk 0:03:00]}  exd5 {[%clk 0:02:55]} 9. d4 {[%clk 0:03:00]}  b4 {[%clk 0:02:43]} 10. Nce2 {[%clk 0:02:57]}  c4 {[%clk 0:02:40]} 11. Nf3 {[%clk 0:02:56]}  Nc6 {[%clk 0:02:40]} 12. O-O {[%clk 0:02:56]}  Bd6 {[%clk 0:02:40]} 13. Nf4 {[%clk 0:02:56]}  O-O {[%clk 0:02:41]} 14. c3 {[%clk 0:02:41]}  a5 {[%clk 0:02:24]} 15. Nh4 {[%clk 0:02:07]}  Ne7 {[%clk 0:02:22]} 16. Nh5 {[%clk 0:02:03]}  Nxh5 {[%clk 0:02:07]} 17. Qxh5 {[%clk 0:02:04]}  a4 {[%clk 0:02:06]} 18. a3 {[%clk 0:01:51]}  bxa3 {[%clk 0:02:06]} 19. bxa3 {[%clk 0:01:52]}  Bc8 {[%clk 0:01:53]} 20. Rfe1 {[%clk 0:01:29]}  Qa5 {[%clk 0:01:41]} 21. Bg5 {[%clk 0:01:04]}  Ng6 {[%clk 0:01:40]} 22. Qf3 {[%clk 0:00:56]}  Nxh4 {[%clk 0:01:36]} 23. Bxh4 {[%clk 0:00:57]}  Be6 {[%clk 0:01:36]} 24. Bg5 {[%clk 0:00:49]}  Rab8 {[%clk 0:01:35]} 25. Bf4 {[%clk 0:00:49]}  Bxf4 {[%clk 0:01:35]} 26. Qxf4 {[%clk 0:00:50]}  Qxc3 {[%clk 0:01:33]} 27. Qe5 {[%clk 0:00:33]}  Rfd8 {[%clk 0:01:17]} 28. Rab1 {[%clk 0:00:22]}  Rb3 {[%clk 0:00:51]} 29. Bxd5 {[%clk 0:00:16]}  Rxb1 {[%clk 0:00:17]} 30. Rxb1 {[%clk 0:00:15]}  Bxd5 {[%clk 0:00:17]} 31. Rb8 {[%clk 0:00:13]}  Qa5 {[%clk 0:00:15]} 32. Kh2 {[%clk 0:00:03]}  h6 {[%clk 0:00:16]} 33. Rxd8+ {[%clk 0:00:02]}  Qxd8 {[%clk 0:00:17]} 34. Qe3 {[%clk 0:00:02]}  Be6 {[%clk 0:00:17]} 35. Qc3 {[%clk 0:00:02]}  Qd5 {[%clk 0:00:18]} 36. f4 {[%clk 0:00:02]}  Qe4 {[%clk 0:00:18]} 37. g4 {[%clk 0:00:02]}  Qd3 {[%clk 0:00:18]} 0-1


[Site "https://www.chess.com"]